[Event "8th Fischer Heraklion-GM 2022"]
[Site "Heraklion"]
[Date "2022.04.28"]
[Round "3.1"]
[White "Szwed, Jacek"]
[Black "Korneev, Oleg"]
[Result "1/2-1/2"]
[ECO "C47"]
[WhiteElo "2360"]
[BlackElo "2521"]
[Annotator "TA"]
[PlyCount "110"]
[EventDate "2022.04.18"]
[EventType "tourn"]
[EventCountry "GRE"]
[SourceTitle "playchess.com"]
[Source "ChessBase"]
[SourceQuality "1"]
[TimeControl "40/5400+30:1800+30"]

{[%evp 15,110,0,0,0,14,9,11,8,13,13,7,8,12,10,13,12,15,9,10,5,9,12,10,9,12,6,4,8,11,7,12,9,34,33,41,42,95,88,83,90,91,49,52,50,59,45,128,128,128,76,76,76,76,76,76,66,128,72,81,46,46,46,46,47,47,7,7,0,7,0,0,0,0,0,0,0,0,0,0,0,0,0,0,0,0,0,0,0,0,0,0,0,0,0,0,0,0]} 1. e4 {[%emt 0:00:03]} e5 {[%emt 0:05:00]} 2. Nf3 {[%emt 0:00:05]} Nc6 {[%emt 0:02:13]} 3. Nc3 {[%emt 0:00:08]} Nf6 {[%emt 0:00:30]} 4. d4 {[%emt 0:00:05]} exd4 {[%emt 0:00:26]} 5. Nxd4 {[%emt 0:00:05]} Bb4 {[%emt 0:00:14]} 6. Nxc6 {[%emt 0:00:14]} bxc6 {[%emt 0:02:03]} 7. Bd3 {[%emt 0:00:10]} O-O {[%emt 0:00:11]} 8. O-O {[%emt 0:00:05]} d5 {[%emt 0:00:03]} 9. exd5 {[%emt 0:00:14] C47: Scotch Four Knights and Four Knights with 4 g3.} Bg4 {[%emt 0:00:07]} 10. f3 {[%emt 0:00:43]} Bh5 {[%emt 0:00:10]} 11. dxc6 {[%emt 0:00:35]} Qd4+ {[%emt 0:00:12]} 12. Kh1 {[%emt 0:00:08][%cal Od3h7]} Bxc3 {[%emt 0:00:05]} 13. bxc3 {[%emt 0:00:10]} Qxc3 {[%emt 0:00:04]} 14. Bf4 {[%emt 0:00:13]} Qxc6 {[%emt 0:00:15]} 15. Qe2 {[%emt 0:00:10]} a6 {[%emt 0:00:06] Inhibits Bb5.} 16. Qe5 {[%emt 0:00:59]} Bg6 {[%emt 0:01:14]} 17. Qxc7 {[%emt 0:03:11]} Qxc7 {[%emt 0:00:28]} (17... Qa4 {is more complex.} 18. Be5 Nd5 19. Qc5 Rfd8) 18. Bxc7 {[%emt 0:00:02]} Rfc8 {[%emt 0:00:53] [#]} 19. Ba5 $146 {[%emt 0:14:49]} ({Predecessor:} 19. Bg3 Bxd3 20. cxd3 Rc2 21. a4 h6 22. h4 Rd8 23. Rfc1 Re2 24. Ra3 Nd5 25. Re1 Rxe1+ 26. Bxe1 {½-½ (39) Grischuk,A (2742)-Vidit,S (2723) Chess.com INT 2022}) 19... Rc5 {[%emt 0:09:49]} 20. Bb4 {[%emt 0:06:41]} Bxd3 {[%emt 0:00:26]} 21. cxd3 {[%emt 0:05:24]} Rb5 {[%emt 0:03:16]} 22. Ba3 {[%emt 0:14:47]} Rd8 {[%emt 0:26:44]} 23. Rac1 {[%emt 0:11:58][%cal Od3d4]} h6 {[%emt 0:02:45]} 24. Rfd1 {[%emt 0:11:59]} Ra5 {[%emt 0:16:46]} 25. Be7 {[%emt 0:06:31]} Rd7 {[%emt 0:00:20]} ({Black should try} 25... Rd4 $14) 26. Rc8+ {[%emt 0:02:22]} Kh7 {[%emt 0:00:14]} 27. Bxf6 {[%emt 0:00:01] White is more active.} gxf6 $16 {[%emt 0:00:20][%mdl 4096] Endgame KRR-KRR} 28. Rc2 {[%emt 0:00:13]} Rd4 {[%emt 0:01:40]} 29. Kg1 {[%emt 0:03:16]} Ra3 {[%emt 0:02:22]} 30. Rcd2 {[%emt 0:03:14]} Rda4 {[%emt 0:02:01]} (30... f5 $14) 31. d4 {[%emt 0:02:30][%cal Bd3d4,Bd4d5,Bd5d6,Bd6d7][%mdl 32] [#] aiming for d5.} Rxa2 {[%emt 0:00:17]} 32. Rxa2 {[%emt 0:00:01]} ({Better is} 32. d5 {d6 would kill now.} Rxd2 33. Rxd2) 32... Rxa2 {[%emt 0:00:10] KR-KR} 33. d5 {[%emt 0:00:02]} Rb2 {[%emt 0:00:11]} 34. d6 {[%emt 0:00:30] Threatening mate with d7.} Rb8 {[%emt 0:00:14]} 35. Kf2 {[%emt 0:01:03]} Kg6 {[%emt 0:23:52] [#]} (35... Kg7 $14) 36. Rd5 {[%emt 0:09:30]} ({White should play} 36. Ke3 $1 {[%cal Re3d4]} Kf5 37. d7) 36... Kg7 {[%emt 0:00:21]} 37. d7 {[%emt 0:03:38]} Rd8 {[%emt 0:00:02]} 38. Rd6 {[%emt 0:00:01]} a5 {[%emt 0:00:59]} 39. Ke3 {[%emt 0:03:19]} a4 {[%emt 0:01:54]} 40. Kd4 {[%emt 0:00:00]} a3 {[%emt 0:00:00] The position is equal.} 41. Kc3 {[%emt 0:08:46]} Kf8 {[%emt 0:01:07]} 42. Rxf6 {[%emt 0:07:33]} (42. Kd3 {is interesting.} Ke7 43. Ra6 Rxd7+ 44. Ke2) 42... Rxd7 {[%emt 0:00:10] Hoping for ...Ra7.} 43. Ra6 {[%emt 0:00:02] Prevents Ra7.} (43. Rxh6 Ra7 44. Rh8+ Ke7 $19) 43... Re7 {[%emt 0:01:05]} 44. Kd2 {[%emt 0:00:57]} Rb7 $1 {[%emt 0:00:10]} 45. Ke3 {[%emt 0:10:50]} Rb2 {[%emt 0:00:28]} 46. Rxa3 {[%emt 0:01:55]} Rxg2 {[%emt 0:00:05]} 47. h4 {[%emt 0:00:10]} Rh2 {[%emt 0:00:40]} 48. Ra4 {[%emt 0:00:01]} f6 {[%emt 0:03:24]} 49. Rf4 {[%emt 0:01:21]} Kg7 {[%emt 0:00:00]} 50. Ke4 {[%emt 0:00:18]} Kg6 {[%emt 0:04:45]} 51. Rg4+ {[%emt 0:00:03]} Kf7 {[%emt 0:00:41]} 52. Kf5 {[%emt 0:00:26]} Rf2 {[%emt 0:00:00]} 53. Kf4 {[%emt 0:00:45]} Rh2 {[%emt 0:01:09]} 54. Kg3 {[%emt 0:00:21]} Rh1 {[%emt 0:00:36]} 55. Kg2 {[%emt 0:00:30]} Ra1 {[%emt 0:00:17] Weighted Error Value: White=0.07 (flawless) /Black=0.06 (flawless)} 1/2-1/2

[Event "8th Fischer Heraklion-GM 2022"]
[Site "Heraklion"]
[Date "2022.04.28"]
[Round "3.2"]
[White "Nikolaidis, Ioannis"]
[Black "Mitsis, Georgios"]
[Result "1/2-1/2"]
[ECO "D20"]
[WhiteElo "2536"]
[BlackElo "2344"]
[Annotator "TA"]
[PlyCount "21"]
[EventDate "2022.04.18"]
[EventType "tourn"]
[EventCountry "GRE"]
[SourceTitle "playchess.com"]
[Source "ChessBase"]
[SourceQuality "1"]
[TimeControl "40/5400+30:1800+30"]

{[%evp 18,20,0,0,0]} 1. d4 {[%emt 0:00:33]} d5 {[%emt 0:00:38]} 2. c4 {[%emt 0:00:41]} dxc4 {[%emt 0:00:16]} 3. e4 {[%emt 0:00:20][%cal Be2e4,Be4e5][%mdl 32]} Nf6 {[%emt 0:01:07]} 4. e5 {[%emt 0:00:17]} Nd5 {[%emt 0:00:12]} 5. Bxc4 {[%emt 0:00:14]} Nb6 {[%emt 0:00:33]} 6. Bb3 {[%emt 0:00:19]} Nc6 {[%emt 0:01:02]} 7. Nf3 {[%emt 0:00:21]} Bg4 {[%emt 0:01:05]} 8. Ng5 {[%emt 0:00:11]} Bxd1 {[%emt 0:00:34]} 9. Bxf7+ {[%emt 0:00:05]} Kd7 {[%emt 0:00:09]} 10. Be6+ {[%emt 0:00:03]} Ke8 {[%emt 0:00:10] [#] An even fight not without its subleties. D20: Queen's Gambit Accepted: 3 e3 and 3 e4.} {Predecessor:} 11. Bf7+ $146 1/2-1/2

[Event "8th Fischer Heraklion-GM 2022"]
[Site "Heraklion"]
[Date "2022.04.28"]
[Round "3.3"]
[White "Materia, Marco"]
[Black "Milikow, Yoav"]
[Result "0-1"]
[ECO "A50"]
[WhiteElo "2398"]
[BlackElo "2383"]
[Annotator "TA"]
[PlyCount "70"]
[EventDate "2022.04.18"]
[EventType "tourn"]
[EventCountry "GRE"]
[SourceTitle "playchess.com"]
[Source "ChessBase"]
[SourceQuality "1"]
[TimeControl "40/5400+30:1800+30"]

{[%evp 9,70,-2,0,-33,-33,-31,0,-7,0,0,0,7,14,0,0,0,0,0,0,-38,-43,-49,-41,-73,-73,-98,-66,-138,-104,-155,-93,-94,-85,-302,-100,-112,-150,-415,-405,-594,-562,-574,-518,-474,-299,-298,-272,-283,-285,-389,-210,-585,-551,-725,-709,-666,-475,-29968,-29955,-29988,-29989,-29989,-29990]} 1. d4 {[%emt 0:00:02]} Nf6 {[%emt 0:00:09]} 2. c4 {[%emt 0:00:02]} e6 {[%emt 0:00:36]} 3. Bf4 {[%emt 0:00:04]} d5 {[%emt 0:00:35]} 4. cxd5 {[%emt 0:00:04]} Nxd5 {[%emt 0:00:53]} 5. Bg3 {[%emt 0:00:13]} c5 {[%emt 0:00:41]} 6. e4 {[%emt 0:00:06] A50: Queen's Fianchetto Defence (1 d4 Nf6 2 c4 b6).} Nf6 {[%emt 0:00:51][%csl LRd4,LRe4]} 7. Nd2 {[%emt 0:01:18]} cxd4 {[%emt 0:01:21] [#]} 8. e5 $146 {[%emt 0:01:47] The position is equal.} ({Predecessor:} 8. Ngf3 Nc6 9. e5 Nh5 10. Bd3 Be7 11. O-O O-O 12. a3 Bd7 13. Qe2 Nxg3 14. hxg3 {1-0 (28) Mendonca,L (2536)-Lei,T (2505) chess24.com INT 2021}) 8... Nd5 {[%emt 0:01:34]} 9. Ngf3 {[%emt 0:02:22]} Nc6 {[%emt 0:02:33]} 10. a3 {[%emt 0:02:08]} Be7 {[%emt 0:04:13]} 11. Rc1 {[%emt 0:01:35]} O-O {[%emt 0:05:02]} 12. Bd3 {[%emt 0:03:28]} f5 {[%emt 0:02:08] ...f4 is the strong threat.} 13. exf6 $1 {[%emt 0:02:21]} gxf6 {[%emt 0:03:29]} 14. Rxc6 {[%emt 0:15:38][%mdl 64] Remove Defender} bxc6 {[%emt 0:00:09]} 15. Nxd4 {[%emt 0:00:22]} Qe8 {[%emt 0:09:44]} 16. Qg4+ {[%emt 0:12:41]} Kh8 {[%emt 0:03:18]} 17. Qh3 {[%emt 0:10:16][%csl Gd3][%cal Rh3h7]} f5 {[%emt 0:02:50]} 18. N2f3 {[%emt 0:02:08]} (18. O-O $15) 18... Bf6 {[%emt 0:11:01]} 19. Ne5 {[%emt 0:02:23]} (19. O-O $142) 19... a5 {[%emt 0:07:01]} (19... Rg8 $142 {Threatens to win with ...Rg5.} 20. Ndf3 a5) 20. O-O $17 {[%emt 0:10:14]} Ra7 {[%emt 0:05:32]} 21. Be2 $2 {[%emt 0:04:40]} (21. Ndf3 $17) 21... Rg8 $2 {[%emt 0:02:05]} (21... Rg7 $19 {has better winning chances. aiming for ...f4.} 22. f4 Qd8) 22. Bh5 {[%emt 0:03:48]} Qf8 {[%emt 0:00:15]} 23. Kh1 $2 {[%emt 0:08:32]} (23. Ndxc6 $17 Rag7 24. Bf3) 23... f4 $19 {[%emt 0:09:45]} 24. Ndxc6 {[%emt 0:05:29] [#]} (24. Bh4 $142 Bxe5 25. Nxc6) 24... fxg3 $1 {[%emt 0:02:19]} 25. Nxa7 {[%emt 0:02:31] Strongly threatening Nf7+.} Bxe5 {[%emt 0:00:54]} 26. Nxc8 {[%emt 0:00:18][%cal Oh3e6]} Qxc8 {[%emt 0:03:59]} 27. hxg3 {[%emt 0:00:11]} Rf8 {[%emt 0:01:24] Inhibits Bf7.} ({Wrong is} 27... Bxb2 $2 28. Bf7 Rf8 29. Bxe6 $19) 28. Bg6 {[%emt 0:03:55][%csl Gg6][%cal Rh3h7]} Qd7 {[%emt 0:00:53]} 29. b3 {[%emt 0:00:42]} Ne3 {[%emt 0:01:05]} 30. Re1 $2 {[%emt 0:00:21] [#]} (30. Qh6 {nothing else works.} Qg7 31. Qxe3) 30... Nd1 $1 {[%emt 0:00:20]} 31. Qh5 {[%emt 0:02:29]} (31. Rxd1 Qxd1+) 31... Nxf2+ {[%emt 0:00:09]} 32. Kh2 {[%emt 0:00:01]} Rf6 {[%emt 0:03:49]} 33. Qg5 {[%emt 0:02:06]} (33. Rxe5 $19 Rxg6 34. Rg5) 33... hxg6 {[%emt 0:01:26] Black mates.} 34. Kg1 {[%emt 0:01:00]} Bd4 {[%emt 0:02:11]} 35. Qh4+ {[%emt 0:00:34]} Kg7 {[%emt 0:00:31] Weighted Error Value: White=0.83/Black=0.30} 0-1

[Event "8th Fischer Heraklion-GM 2022"]
[Site "Heraklion"]
[Date "2022.04.28"]
[Round "3.4"]
[White "Kapnisis, Spyridon"]
[Black "Jahncke, Giso"]
[Result "1-0"]
[ECO "C45"]
[WhiteElo "2450"]
[BlackElo "2326"]
[Annotator "TA"]
[PlyCount "73"]
[EventDate "2022.04.18"]
[EventType "tourn"]
[EventCountry "GRE"]
[SourceTitle "playchess.com"]
[Source "ChessBase"]
[SourceQuality "1"]
[TimeControl "40/5400+30:1800+30"]

{[%evp 17,73,8,10,0,14,10,16,37,39,23,20,0,0,-43,12,4,8,0,0,0,12,18,10,-9,0,-3,9,6,19,0,19,0,37,19,52,47,115,62,78,0,93,0,59,5,8,6,212,231,220,218,207,188,232,216,461,235,956,924]} 1. e4 {[%emt 0:00:06]} e5 {[%emt 0:00:07]} 2. Nf3 {[%emt 0:00:07]} Nc6 {[%emt 0:00:05]} 3. d4 {[%emt 0:01:21]} exd4 {[%emt 0:00:07]} 4. Nxd4 {[%emt 0:00:02]} Nf6 {[%emt 0:00:08]} 5. Nxc6 {[%emt 0:00:08]} bxc6 {[%emt 0:00:09][%cal Bb7c6,Bc6d5][%mdl 32]} 6. Bd3 {[%emt 0:00:14]} d5 {[%emt 0:00:45]} 7. exd5 {[%emt 0:00:07]} cxd5 {[%emt 0:01:26]} 8. O-O {[%emt 0:00:10]} Be7 {[%emt 0:05:48]} 9. c4 {[%emt 0:00:24]} O-O {[%emt 0:02:47] The main line 9...0-0 scores better than 9...d4.} 10. Nc3 {[%emt 0:00:40] C45: Scotch Game.} Bb7 {[%emt 0:06:55]} 11. Qb3 {[%emt 0:00:40]} Rb8 {[%emt 0:01:45]} 12. cxd5 {[%emt 0:09:53] [#] The position is equal.} Bd6 $146 {[%emt 0:02:24][%cal Of6d5]} ({Predecessor:} 12... Bxd5 13. Qc2 Ba8 14. Re1 Re8 15. Be3 Qc8 16. f3 Qb7 17. Re2 Bd6 18. Ne4 Nxe4 19. Bxe4 {1-0 (34) Pechac,J (2544)-Nikolov,M (2522) Thessaloniki 2021}) 13. Qc2 {[%emt 0:28:56]} ({Of course not} 13. Bg5 Bxh2+ $1 14. Kxh2 Ng4+ 15. Kg1 Qxg5 $15) 13... h6 {[%emt 0:14:59]} 14. Ne4 {[%emt 0:10:03]} Be5 {[%emt 0:05:49]} 15. Rd1 {[%emt 0:04:53]} Bxd5 {[%emt 0:13:58]} (15... Qxd5 $2 16. Nxf6+ Bxf6 17. Bh7+ Kh8 18. Rxd5 $18) (15... Nxd5 $15 16. Nc5 Bc8) 16. Nc3 {[%emt 0:01:14]} c6 {[%emt 0:03:25]} 17. Nxd5 {[%emt 0:10:01]} cxd5 {[%emt 0:00:09]} 18. Rb1 {[%emt 0:00:23]} Qa5 {[%emt 0:04:25]} 19. b4 {[%emt 0:04:29]} Qb6 {[%emt 0:00:47]} (19... Rxb4 $2 20. Bd2 Bd6 21. Rb3 $18 (21. Bxb4 Bxb4 22. g3 Rb8 $16) (21. a3 Qxa3 22. Bxb4 Bxb4 $16)) 20. Re1 {[%emt 0:03:55]} Rbc8 {[%emt 0:02:29]} 21. Qd1 {[%emt 0:02:44]} Qd6 {[%emt 0:00:39]} 22. g3 {[%emt 0:00:30]} Bc3 {[%emt 0:02:07]} 23. Bf4 {[%emt 0:02:39]} Qd7 {[%emt 0:00:45]} 24. Re2 {[%emt 0:06:25]} d4 {[%emt 0:02:22]} 25. Re5 {[%emt 0:00:46] Black must now prevent Bf5.} Qb7 {[%emt 0:02:57]} 26. Rb5 {[%emt 0:04:09]} Qc6 {[%emt 0:02:18] [#]} (26... Qa8 $1 $14) 27. Rc5 {[%emt 0:01:27]} (27. Ra5 $1 $16 {[%cal Ra5a6]}) 27... Qb7 {[%emt 0:00:29]} 28. Rb5 {[%emt 0:00:06] White is more active.} Qc6 {[%emt 0:00:05]} 29. Rc5 {[%emt 0:00:12]} Qb7 {[%emt 0:00:13]} 30. Rf5 {[%emt 0:02:40]} ({Better is} 30. Qf1 $14) 30... Rfe8 $11 {[%emt 0:06:25] aiming for ...Re1+.} 31. Qf1 $36 {[%emt 0:00:06][%cal Of5f6][%mdl 2048] Against Re1. And now Rxf6! would win. White has the initiative.} Re7 $2 {[%emt 0:07:04] Black cannot hold the game after this.} (31... Re6 $1 $11 {and Black is okay.}) 32. Ba6 $18 {[%emt 0:01:42] This bishop pair is nice.} Qd7 {[%emt 0:00:52]} 33. Bxc8 {[%emt 0:00:04]} Qxc8 {[%emt 0:00:04]} 34. Rc5 {[%emt 0:01:48]} Qg4 {[%emt 0:00:28]} 35. Qd3 {[%emt 0:00:42] Prevents Qf3.} g6 $2 {[%emt 0:01:51]} (35... Re8 36. Ra5 Qd7) 36. Be5 {[%emt 0:01:15]} (36. Rxc3 $142 dxc3 37. Qd8+ Re8 38. Qxf6) 36... Ne4 $2 {[%emt 0:00:50] [#]} (36... Nd7 37. Rc8+ Nf8) 37. Qxe4 $3 {[%emt 0:00:21][%mdl 512] Weighted Error Value: White=0.26 (precise) /Black=0.35} 1-0

[Event "8th Fischer Heraklion-GM 2022"]
[Site "Heraklion"]
[Date "2022.04.28"]
[Round "3.5"]
[White "Vaishali R"]
[Black "Samaridis, Konstantinos"]
[Result "1-0"]
[ECO "A48"]
[WhiteElo "2411"]
[BlackElo "2064"]
[Annotator "TA"]
[PlyCount "159"]
[EventDate "2022.04.18"]
[EventType "tourn"]
[EventCountry "GRE"]
[SourceTitle "playchess.com"]
[Source "ChessBase"]
[SourceQuality "1"]
[TimeControl "40/5400+30:1800+30"]

{[%evp 11,159,0,0,0,0,-3,10,-10,12,10,12,16,11,9,18,-8,14,14,20,29,39,19,22,40,39,39,48,47,31,37,23,7,29,8,10,0,0,-43,-47,-46,-46,-35,-50,-184,-181,-183,-201,-255,-251,-210,-181,-258,-252,-304,-298,-342,-336,-387,-375,-366,-404,-402,-253,-349,-248,-738,-153,-363,0,0,0,0,0,0,0,0,0,0,0,0,12,0,5731,0,0,-8,0,0,332,332,332,332,332,332,332,332,332,332,332,332,373,197,373,373,373,373,406,406,406,406,406,406,406,406,527,373,373,373,492,405,9989,9950,9985,2858,8585,853,10986,373,12842,12165,5465,1128,500,373,12829,373,29956,373,29958,29961,29961,29961,29967,29968,29968,29969,29979,29980,29994,29995]} 1. d4 {[%emt 0:00:32]} Nf6 {[%emt 0:09:46]} 2. Bf4 {[%emt 0:00:12]} g6 {[%emt 0:00:09]} 3. Nf3 {[%emt 0:01:02]} Bg7 {[%emt 0:00:26]} 4. e3 {[%emt 0:00:08]} O-O {[%emt 0:00:10]} 5. Nbd2 {[%emt 0:00:20]} d6 {[%emt 0:00:28]} 6. h3 {[%emt 0:00:47]} Nc6 {[%emt 0:01:35] 6...b6 gains popularity.} 7. c3 {[%emt 0:01:48] A48: 1 d4 Nf6 2 Nf3 g6: Torre, London and Colle Systems.} Re8 {[%emt 0:00:36]} 8. Bb5 {[%emt 0:07:36][%cal Bf1b5,Bb5a4,Ba4c2][%mdl 32]} Bd7 {[%emt 0:00:23][%cal Oc6d4]} 9. O-O {[%emt 0:01:43] The position is equal.} a6 {[%emt 0:02:34]} 10. Ba4 {[%emt 0:01:08] [#]} b5 $146 {[%emt 0:01:23]} ({Predecessor:} 10... Nd5 11. Bh2 Nb6 12. Bb3 Na5 13. Bc2 e5 14. Re1 f5 15. dxe5 dxe5 16. Nb3 Nc6 {0-1 (59) Razkin Igoa,C (1677)-Pedchenko Bondar,A (1461) Pamplona 2015}) 11. Bc2 {[%emt 0:04:44]} e5 {[%emt 0:00:17]} 12. dxe5 {[%emt 0:00:51]} Nxe5 {[%emt 0:01:02]} 13. a4 {[%emt 0:04:17]} Qc8 {[%emt 0:03:47]} 14. Nxe5 {[%emt 0:03:02]} dxe5 {[%emt 0:00:15]} 15. Bg5 {[%emt 0:00:10]} Bc6 {[%emt 0:01:01] Against Qf3} 16. Bxf6 {[%emt 0:01:59]} Bxf6 {[%emt 0:00:12]} 17. Be4 {[%emt 0:00:16]} Bxe4 {[%emt 0:06:28]} 18. Nxe4 {[%emt 0:00:23]} Bg7 {[%emt 0:00:51][%cal Bf6g7,Bg7f8,Bf8e7][%mdl 32]} 19. axb5 {[%emt 0:13:35]} Qb7 {[%emt 0:04:37]} 20. Qf3 {[%emt 0:08:46]} Qxb5 {[%emt 0:00:16]} 21. b4 {[%emt 0:02:09] With the idea Ra5.} a5 {[%emt 0:02:57]} 22. Rfb1 {[%emt 0:09:32]} (22. Ng5 Qc4 23. Qe4 (23. bxa5 e4 $15) (23. Rxa5 Rxa5 24. bxa5 e4 $11) 23... Qxe4 24. Nxe4 f5 $11) 22... a4 {[%emt 0:00:57]} 23. Nc5 {[%emt 0:00:18]} Bf8 {[%emt 0:08:22]} 24. Ne4 {[%emt 0:03:33]} Be7 {[%emt 0:00:35]} 25. Ra3 {[%emt 0:12:09]} f5 {[%emt 0:01:24]} 26. Ng3 $1 {[%emt 0:01:14]} Red8 $36 {[%emt 0:09:37][%mdl 2048] Black is pushing.} 27. e4 {[%emt 0:06:02]} ({Better is} 27. Rba1 $15) 27... f4 $19 {[%emt 0:02:01]} 28. Nf1 {[%emt 0:00:19]} c5 {[%emt 0:02:01]} 29. c4 {[%emt 0:03:23]} Qxc4 {[%emt 0:00:20]} 30. b5 {[%emt 0:00:15]} Rd4 {[%emt 0:04:30]} 31. b6 {[%emt 0:01:42]} (31. Rc3 $142 Qa2 32. Rcc1) 31... Rb8 {[%emt 0:00:15]} (31... Rxe4 $2 32. Nd2 Qd4 33. Nxe4 $18) 32. Qg4 {[%emt 0:03:31]} Kf7 {[%emt 0:01:16]} (32... Rxe4 33. Nd2 Qc2 34. Qe6+ Kf8 35. Ra2 $11) 33. h4 {[%emt 0:01:26]} Qe6 {[%emt 0:01:18]} (33... Rxe4 $2 34. Qd7 Qd4 35. Qa7 $19) 34. Qe2 {[%emt 0:00:36]} Rxb6 {[%emt 0:00:42]} 35. Rxb6 {[%emt 0:00:22]} Qxb6 {[%emt 0:00:02]} 36. h5 {[%emt 0:00:06]} Qb1 {[%emt 0:04:02]} 37. hxg6+ {[%emt 0:00:25]} hxg6 {[%emt 0:00:10]} 38. Rh3 $2 {[%emt 0:00:11]} (38. Qa6 Qxe4 39. Rh3) 38... Qxe4 $2 {[%emt 0:02:26]} (38... Kg7 $19 {and Black stays clearly on top. Threatens to win with ...c4.} 39. Ra3 Rxe4) 39. Rh7+ $2 {[%emt 0:00:16]} (39. Qa6 $17 {is the only way for White.} g5 40. Rh8) 39... Kf6 $2 {[%emt 0:17:34]} ({Stronger than} 39... Ke6 40. Qa6+ Rd6 41. Qc8+ Rd7 42. Qg8+ Kf5 43. Qf7+ Kg5 44. Qe8 $11) ({Black should try} 39... Kg8 $1 $19 40. Qxe4 Rxe4 41. Rxe7 Re1 42. Re8+ (42. Ra7 $2 e4 $19) 42... Kh7 43. Re7+ Kg8 44. Re8+ (44. Ra7 $2 e4 $19) 44... Kh7 45. Re7+ Kh6) 40. Qa6+ $11 {[%emt 0:00:00]} Rd6 {[%emt 0:00:00]} 41. Qa7 {[%emt 0:11:19][%csl LRc5,LRe7]} Re6 {[%emt 0:01:22]} 42. Qb8 $1 {[%emt 0:00:07] Hoping for Qg8.} Kg5 {[%emt 0:10:59]} 43. Qg8 $1 {[%emt 0:05:12]} Qc6 {[%emt 0:00:57] ...c4 is the strong threat.} 44. Qg7 $1 {[%emt 0:08:30]} e4 {[%emt 0:01:41] aiming for ...Qd6.} 45. g3 {[%emt 0:05:04]} Bd6 {[%emt 0:04:01]} 46. Rh4 {[%emt 0:08:59]} fxg3 {[%emt 0:02:12][%mdl 8192]} (46... Qc7 $11 47. gxf4+ Bxf4 48. Qh6+ Kf5 49. Rxf4+ Qxf4 50. Ne3+ Ke5 51. Nc4+ Kf5 52. Ne3+ Ke5 53. Nc4+ Kf5 54. Ne3+) 47. fxg3 $2 {[%emt 0:00:45]} (47. Qh6+ $18 Kf6 48. Qh8+ Kg5 49. Ne3 gxf2+ 50. Kxf2 Rf6+ 51. Kg2 Rf2+ 52. Kxf2) 47... Qc7 {[%emt 0:05:18]} (47... Be5 $5 48. Qh6+ Kf6 49. Qf8+ Kg5 50. Qh6+ Kf6 51. Qf8+ Kg5 52. Qh6+ $11) 48. Qh8 {[%emt 0:02:52] White wants to mate with Ne3.} Bxg3 {[%emt 0:00:34]} (48... Be5 $5 49. Rg4+ (49. Qh6+ $2 Kf6 $19) 49... Kxg4 50. Qh4+ Kf3 51. Qh1+ Ke2 52. Qxe4+ Kd1 53. Qb1+ Ke2 54. Qe4+ Kd1 55. Qb1+ Ke2 56. Qe4+ $11) 49. Qh6+ {[%emt 0:00:50]} Kf5 $2 {[%emt 0:02:48][%mdl 8192]} (49... Kf6 $11 50. Rg4 Qg7 $1 51. Qg5+ Kf7 52. Nxg3 Qe5) 50. Ne3+ $18 {[%emt 0:00:07]} Ke5 {[%emt 0:00:13]} 51. Qh8+ {[%emt 0:00:32]} Kd6 {[%emt 0:00:30] [#]} 52. Rh7 {[%emt 0:00:04]} Be5 {[%emt 0:07:17]} 53. Qg8 {[%emt 0:00:48] Dancing on a razor blade.} Qxh7 {[%emt 0:04:38]} 54. Qxh7 {[%emt 0:00:11]} Bd4 {[%emt 0:00:01]} 55. Kf2 {[%emt 0:00:29]} a3 {[%emt 0:01:09] And now ...a2 would win.} 56. Qa7 {[%emt 0:00:47]} (56. Ke2 $142) 56... Ke5 $2 {[%emt 0:04:23]} (56... Rf6+ {might work better.} 57. Ke2 Rf3 58. Nc4+ Ke6 59. Nxa3 Re3+ 60. Kf1 Rf3+ 61. Kg2 (61. Ke1 Re3+ 62. Kf1 Rf3+ 63. Kg2 Be3 $18) 61... Kf5) 57. Ke2 {[%emt 0:00:30] Black must now prevent Qc7+.} Bxe3 {[%emt 0:00:24]} 58. Kxe3 {[%emt 0:00:10][%mdl 4096] Endgame KQ-KR} Kd5 {[%emt 0:02:18]} 59. Qa8+ {[%emt 0:00:20]} Kd6 {[%emt 0:00:43]} 60. Qxa3 {[%emt 0:00:05]} Kd5 {[%emt 0:00:29]} 61. Qb3+ {[%emt 0:00:33]} Kd6 {[%emt 0:00:11]} 62. Qc4 {[%emt 0:00:41]} g5 {[%emt 0:00:34]} 63. Qa6+ {[%emt 0:00:05]} Ke7 {[%emt 0:01:28]} 64. Qa7+ {[%emt 0:00:11]} Kd6 {[%emt 0:00:02]} 65. Qb6+ {[%emt 0:00:09]} Ke7 {[%emt 0:01:17]} (65... Kd5 $142 66. Qd8+ Rd6) 66. Qxc5+ {[%emt 0:00:09]} Kf6 {[%emt 0:00:02]} 67. Qf8+ {[%emt 0:00:31]} (67. Qc8 $142 Kf7 68. Qd7+ Kf6 69. Qh7) 67... Kg6 {[%emt 0:00:18]} 68. Qg8+ {[%emt 0:00:10]} Kf6 {[%emt 0:00:08]} 69. Qh8+ $2 {[%emt 0:00:35]} (69. Qh7 Re8 70. Qh5) 69... Kf7 $2 {[%emt 0:01:32]} (69... Kg6 70. Qg8+ Kf6) 70. Qh7+ {[%emt 0:00:17]} Kf6 {[%emt 0:00:18]} 71. Qh6+ {[%emt 0:00:21]} (71. Qh3 $142 Re8 72. Qf1+ Kg6 73. Qa6+ Kf5 74. Qb5+ Re5 75. Qf1+ Kg6 76. Qa6+ Kg7 77. Qa1) 71... Kf5 {[%emt 0:00:05]} 72. Qg7 {[%emt 0:00:21]} Ra6 $2 {[%emt 0:01:20]} (72... Rf6 73. Qd7+ Kg6 74. Qe8+ Kh6 75. Kxe4 Rf4+ 76. Ke5 Rf2 77. Qc6+ Kh5 78. Qh1+ Kg6 79. Qe4+ Kh5 80. Qh1+ Kg6 81. Qe4+ Kh5 82. Qh1+) 73. Qf7+ $2 {[%emt 0:00:57]} (73. Qh7+ Kg4 74. Qxe4+ Kh5 75. Qe8+ Kh6 76. Qf7) 73... Ke5 $2 {[%emt 0:00:17]} (73... Rf6 $18 74. Qd7+ Kg6 75. Kxe4 Rf2) 74. Qc7+ $2 {[%emt 0:01:05]} (74. Qe7+ {mates} Re6 75. Qxg5+ Kd6 76. Qd8+ Kc5 77. Qc7+ Kd5 78. Qd7+ Ke5 79. Qd4+ Kf5 80. Qg7) 74... Rd6 $2 {[%emt 0:00:08]} (74... Kf6 $18 75. Kxe4 Ra4+ 76. Kf3 Ra3+ 77. Ke2 Ra2+ 78. Kd3 Ra3+ 79. Ke4 Ra4+ 80. Kf3 Rf4+ 81. Kg2 Kg6) 75. Qc5+ {[%emt 0:00:11] White mates.} Ke6 {[%emt 0:00:45]} 76. Kxe4 {[%emt 0:00:23]} g4 {[%emt 0:00:17]} 77. Qf5+ {[%emt 0:00:09]} Ke7 {[%emt 0:00:04]} 78. Ke5 {[%emt 0:00:05]} Ra6 {[%emt 0:00:52]} 79. Qh7+ {[%emt 0:01:15]} Kd8 {[%emt 0:00:26]} 80. Qd3+ {[%emt 0:00:00] What a bad dream for Black.  Weighted Error Value: White=0.36/Black=0.49} 1-0